[Event "Summer Chess Classic-C 2019"]
[Site "Saint Louis"]
[Date "2019.06.22"]
[Round "5.1"]
[White "Chirila, Ioan-Cristian"]
[Black "Hakobyan, Aram"]
[Result "0-1"]
[ECO "A05"]
[WhiteElo "2561"]
[BlackElo "2559"]
[Annotator "RC"]
[PlyCount "90"]
[EventDate "2019.06.18"]
[EventType "tourn"]
[EventCountry "USA"]
[SourceTitle "playchess.com"]
[Source "ChessBase"]
[SourceQuality "1"]
[TimeControl "40/5400+30:1800+30"]

1. Nf3 {[%emt 0:00:10]} Nf6 {[%emt 0:00:46]} 2. c4 {[%emt 0:01:25]} g6 {[%emt 0:00:28]} 3. Nc3 Bg7 {[%emt 0:00:17]} 4. d4 {[%emt 0:04:34]} d5 {[%emt 0:00:45]} 5. cxd5 {[%emt 0:09:38]} Nxd5 {[%emt 0:00:07]} 6. Bg5 {[%emt 0:00:18]} c5 {[%emt 0:06:38]} 7. Nxd5 {[%emt 0:00:40]} Qxd5 {[%emt 0:00:09]} 8. Rc1 {[%emt 0:00:03]} Qxa2 {[%emt 0:19:00]} 9. Rxc5 {[%emt 0:00:16]} Na6 {[%emt 0:04:24]} 10. Rb5 {[%emt 0:20:47]} h6 {[%emt 0:22:12]} 11. Bd2 {[%emt 0:18:45]} Bd7 {[%emt 0:00:57]} 12. Ra5 {[%emt 0:00:41]} Qxb2 {[%emt 0:00:39]} 13. e3 {[%emt 0:00:56]} Nb4 {[%emt 0:05:29]} 14. Rc5 {[%emt 0:09:07]} O-O {[%emt 0:05:32]} 15. Bc3 {[%emt 0:12:59]} Qa3 {[%emt 0:00:56]} 16. Qd2 {[%emt 0:04:28]} a5 {[%emt 0:01:12]} 17. Bb2 {[%emt 0:01:53]} Qa2 {[%emt 0:02:47]} 18. Be2 {[%emt 0:09:28]} Rfc8 {[%emt 0:00:48]} 19. Rc3 {[%emt 0:01:38]} Rxc3 {[%emt 0:04:36]} 20. Bxc3 {[%emt 0:00:02]} Nc2+ {[%emt 0:04:08]} 21. Kf1 {[%emt 0:00:05]} Rc8 {[%emt 0:00:13]} 22. Ne1 {[%emt 0:00:20]} Qb1 {[%emt 0:02:44]} 23. Bd3 {[%emt 0:00:47]} Bb5 {[%emt 0:01:26]} 24. Ke2 {[%emt 0:00:35]} Na3 {[%emt 0:04:27]} 25. Bxa5 {[%emt 0:00:29]} e5 {[%emt 0:05:23]} 26. Kf3 {[%emt 0:00:58]} Bxd3 {[%emt 0:01:00]} 27. Qxd3 {[%emt 0:00:08]} Nc2 {[%emt 0:00:13]} 28. Kg3 {[%emt 0:00:53]} exd4 {[%emt 0:01:50]} 29. exd4 {[%emt 0:00:13]} Qa1 {[%emt 0:00:32]} 30. Bd2 {[%emt 0:00:41]} Nxd4 {[%emt 0:03:30]} 31. h3 {[%emt 0:00:02]} Be5+ {[%emt 0:01:05]} 32. f4 {[%emt 0:00:30]} Rd8 {[%emt 0:00:48]} 33. Kh2 {[%emt 0:01:16]} Ne6 {[%emt 0:00:03]} 34. Qxd8+ {[%emt 0:00:46]} Nxd8 {[%emt 0:00:02]} 35. Nf3 {[%emt 0:00:06]} Qb2 {[%emt 0:01:00]} 36. fxe5 {[%emt 0:00:05]} g5 {[%emt 0:00:05]} 37. Rc1 {[%emt 0:01:00]} Ne6 {[%emt 0:00:08]} 38. Rc4 {[%emt 0:00:02]} Qb3 {[%emt 0:00:30]} 39. Rb4 {[%emt 0:00:42]} Qd5 {[%emt 0:00:08]} 40. h4 {[%emt 0:00:00]} b5 {[%emt 0:00:00]} 41. Kg3 {[%emt 0:04:39]} Nc5 {[%emt 0:02:37]} 42. Rd4 {[%emt 0:01:35]} Ne4+ {[%emt 0:01:33]} 43. Kh2 {[%emt 0:00:05]} Qc6 {[%emt 0:00:17]} 44. Rd8+ {[%emt 0:07:12]} Kg7 {[%emt 0:02:44]} 45. Nd4 {[%emt 0:10:53]} Qc7 {[%emt 0:04:20]} 0-1

[Event "Summer Chess Classic-C 2019"]
[Site "Saint Louis"]
[Date "2019.06.22"]
[Round "5.2"]
[White "Jacobson, Brandon"]
[Black "Moradiabadi, Elshan"]
[Result "0-1"]
[ECO "C54"]
[WhiteElo "2486"]
[BlackElo "2548"]
[Annotator "RC"]
[PlyCount "124"]
[EventDate "2019.06.18"]
[EventType "tourn"]
[EventCountry "USA"]
[SourceTitle "playchess.com"]
[Source "ChessBase"]
[SourceQuality "1"]
[TimeControl "40/5400+30:1800+30"]

1. e4 {[%emt 0:00:00]} e5 {[%emt 0:00:00]} 2. Nf3 {[%emt 0:00:04]} Nc6 {[%emt 0:00:00]} 3. Bc4 {[%emt 0:00:07]} Bc5 {[%emt 0:01:38]} 4. c3 {[%emt 0:00:06]} Nf6 {[%emt 0:00:04]} 5. d3 {[%emt 0:00:02]} d6 {[%emt 0:00:10]} 6. O-O {[%emt 0:00:23]} a6 {[%emt 0:00:08]} 7. a4 {[%emt 0:00:04]} O-O {[%emt 0:00:47]} 8. Nbd2 {[%emt 0:00:14]} a5 {[%emt 0:03:18]} 9. Re1 {[%emt 0:02:03]} h6 {[%emt 0:02:28]} 10. h3 {[%emt 0:00:06]} Ne7 {[%emt 0:05:56]} 11. Bb3 {[%emt 0:09:24]} Ng6 {[%emt 0:00:50]} 12. Nf1 {[%emt 0:00:05]} Re8 {[%emt 0:00:50]} 13. Ng3 {[%emt 0:00:16]} Be6 {[%emt 0:08:30]} 14. d4 {[%emt 0:18:04]} Bb6 {[%emt 0:03:08]} 15. Bc2 {[%emt 0:00:35]} c6 {[%emt 0:12:35]} 16. Be3 {[%emt 0:00:15]} Qc7 {[%emt 0:00:16]} 17. Qc1 {[%emt 0:04:49]} Rad8 {[%emt 0:02:43]} 18. Nf5 {[%emt 0:21:17]} Bxf5 {[%emt 0:18:32]} 19. exf5 {[%emt 0:00:19]} Nf8 {[%emt 0:02:21]} 20. Bxh6 {[%emt 0:10:30]} N8h7 {[%emt 0:00:00]} 21. Be3 {[%emt 0:02:06]} e4 {[%emt 0:01:12]} 22. Nd2 {[%emt 0:04:22]} d5 {[%emt 0:00:01]} 23. g4 {[%emt 0:04:13]} Qd6 {[%emt 0:04:29]} 24. Kg2 {[%emt 0:00:08]} Bc7 {[%emt 0:00:01]} 25. Rh1 {[%emt 0:08:47]} g6 {[%emt 0:01:53]} 26. fxg6 {[%emt 0:00:04]} fxg6 {[%emt 0:00:02]} 27. Qg1 {[%emt 0:00:18]} Rf8 {[%emt 0:01:15]} 28. Kf1 {[%emt 0:00:38]} Rf7 {[%emt 0:04:00]} 29. Ke2 {[%emt 0:00:01]} Nf8 {[%emt 0:00:01]} 30. Re1 {[%emt 0:00:24]} b5 {[%emt 0:00:14]} 31. Kd1 {[%emt 0:09:18]} Rb8 {[%emt 0:04:19]} 32. Kc1 {[%emt 0:00:04]} bxa4 {[%emt 0:06:34]} 33. Bxa4 {[%emt 0:00:02]} Ne6 {[%emt 0:00:04]} 34. f3 {[%emt 0:01:39]} Nf4 {[%emt 0:07:09]} 35. Bc2 {[%emt 0:00:01]} a4 {[%emt 0:00:00]} 36. fxe4 {[%emt 0:01:54]} dxe4 {[%emt 0:00:12]} 37. Bxf4 {[%emt 0:03:27]} Qxf4 {[%emt 0:00:01]} 38. g5 {[%emt 0:00:01]} a3 {[%emt 0:02:17]} 39. bxa3 {[%emt 0:00:44]} Nd5 {[%emt 0:00:38]} 40. Rxe4 {[%emt 0:00:00]} Qd6 {[%emt 0:00:00]} 41. Nc4 {[%emt 0:07:42]} Qf8 {[%emt 0:08:25]} 42. Qg4 {[%emt 0:09:28]} Rf1+ {[%emt 0:08:12]} 43. Rxf1 {[%emt 0:14:29]} Qxf1+ {[%emt 0:00:17]} 44. Kd2 {[%emt 0:02:03]} Qxc4 {[%emt 0:04:59]} 45. Qf3 {[%emt 0:00:01]} Ba5 {[%emt 0:01:18]} 46. Qd3 {[%emt 0:01:44]} Bxc3+ {[%emt 0:00:36]} 47. Kd1 {[%emt 0:00:37]} Qxd3+ {[%emt 0:04:16]} 48. Bxd3 {[%emt 0:00:01]} Kf7 {[%emt 0:00:21]} 49. h4 {[%emt 0:00:18]} Bb2 {[%emt 0:02:57]} 50. Bc4 {[%emt 0:01:11]} Bxa3 {[%emt 0:00:01]} 51. Re5 {[%emt 0:00:28]} Rh8 {[%emt 0:01:33]} 52. Re4 {[%emt 0:00:01]} Bd6 {[%emt 0:00:20]} 53. Rg4 {[%emt 0:00:35]} Kg7 {[%emt 0:01:00]} 54. Kd2 {[%emt 0:00:15]} Re8 {[%emt 0:02:19]} 55. Rg1 {[%emt 0:01:04]} Re4 {[%emt 0:00:12]} 56. Kd3 {[%emt 0:00:33]} Re3+ {[%emt 0:00:19]} 57. Kd2 {[%emt 0:00:02]} Bb4+ {[%emt 0:00:06]} 58. Kd1 {[%emt 0:00:02]} Re4 {[%emt 0:00:05]} 59. Kc2 {[%emt 0:00:31]} Rxh4 {[%emt 0:00:49]} 60. Ra1 {[%emt 0:00:19]} Rxd4 {[%emt 0:00:41]} 61. Ra7+ {[%emt 0:00:03]} Kf8 {[%emt 0:00:14]} 62. Ra8+ {[%emt 0:00:32]} Kf7 {[%emt 0:00:09]} 0-1

[Event "Summer Chess Classic-C 2019"]
[Site "Saint Louis"]
[Date "2019.06.22"]
[Round "5.3"]
[White "Gordievsky, Dmitry"]
[Black "Neiksans, Arturs"]
[Result "1/2-1/2"]
[ECO "A05"]
[WhiteElo "2592"]
[BlackElo "2566"]
[Annotator "RC"]
[PlyCount "63"]
[EventDate "2019.06.18"]
[EventType "tourn"]
[EventCountry "USA"]
[SourceTitle "playchess.com"]
[Source "ChessBase"]
[SourceQuality "1"]
[TimeControl "40/5400+30:1800+30"]

1. Nf3 {[%emt 0:00:00]} Nf6 {[%emt 0:00:00]} 2. c4 {[%emt 0:00:00]} b6 {[%emt 0:00:00]} 3. g3 {[%emt 0:00:00]} Bb7 {[%emt 0:00:00]} 4. Bg2 {[%emt 0:00:00]} g6 {[%emt 0:00:04]} 5. d4 {[%emt 0:01:26]} Bg7 {[%emt 0:00:06]} 6. O-O {[%emt 0:00:05]} O-O {[%emt 0:00:05]} 7. Qc2 {[%emt 0:02:34]} c5 {[%emt 0:00:22]} 8. d5 {[%emt 0:03:21]} b5 {[%emt 0:00:19]} 9. e4 {[%emt 0:13:04]} bxc4 {[%emt 0:00:22]} 10. Nfd2 {[%emt 0:02:15]} e6 {[%emt 0:04:23]} 11. Nc3 {[%emt 0:17:03]} exd5 {[%emt 0:00:47]} 12. exd5 {[%emt 0:02:36]} d6 {[%emt 0:00:32]} 13. Nxc4 {[%emt 0:03:57]} Ba6 {[%emt 0:00:13]} 14. b3 {[%emt 0:02:22]} Nbd7 {[%emt 0:00:31]} 15. Bf4 {[%emt 0:04:53]} Nb6 {[%emt 0:01:02]} 16. Bxd6 {[%emt 0:04:15]} Re8 {[%emt 0:00:24]} 17. Bxc5 {[%emt 0:02:18]} Nxc4 {[%emt 0:00:33]} 18. bxc4 {[%emt 0:00:17]} Bxc4 {[%emt 0:00:23]} 19. Rfd1 {[%emt 0:01:53]} Rc8 {[%emt 0:00:44]} 20. Bd4 {[%emt 0:05:56]} Bxd5 {[%emt 0:02:24]} 21. Qa4 {[%emt 0:23:23]} Bxg2 {[%emt 0:15:29]} 22. Kxg2 {[%emt 0:00:02]} Qc7 {[%emt 0:00:28]} 23. Bxf6 {[%emt 0:02:15]} Bxf6 {[%emt 0:00:07]} 24. Nd5 {[%emt 0:00:03]} Qc6 {[%emt 0:04:52]} 25. Qxc6 {[%emt 0:00:36]} Rxc6 {[%emt 0:00:04]} 26. Rac1 {[%emt 0:00:20]} Rd6 {[%emt 0:00:07]} 27. Rc7 {[%emt 0:03:29]} a6 {[%emt 0:01:07]} 28. Ne7+ {[%emt 0:02:32]} Bxe7 {[%emt 0:00:39]} 29. Rxe7 {[%emt 0:00:04]} Rxd1 {[%emt 0:00:17]} 30. Rxe8+ {[%emt 0:00:02]} Kg7 {[%emt 0:00:07]} 31. Re5 {[%emt 0:00:21]} Rd6 {[%emt 0:00:17]} 32. Ra5 {[%emt 0:00:04]} 1/2-1/2

[Event "Summer Chess Classic-C 2019"]
[Site "Saint Louis"]
[Date "2019.06.24"]
[Round "6.3"]
[White "Moradiabadi, Elshan"]
[Black "Neiksans, Arturs"]
[Result "0-1"]
[ECO "E16"]
[WhiteElo "2548"]
[BlackElo "2566"]
[Annotator "ChessBase"]
[PlyCount "92"]
[EventDate "2019.06.18"]
[EventType "tourn"]
[EventCountry "USA"]
[SourceTitle "playchess.com"]
[Source "ChessBase"]
[SourceQuality "1"]
[TimeControl "40/5400+30:1800+30"]

1. d4 {[%emt 0:00:52]} Nf6 {[%emt 0:00:00]} 2. c4 {[%emt 0:00:05]} e6 {[%emt 0:00:00]} 3. Nf3 {[%emt 0:00:05]} b6 {[%emt 0:00:00]} 4. g3 {[%emt 0:00:01]} Bb7 {[%emt 0:00:22]} 5. Bg2 {[%emt 0:00:04]} Bb4+ {[%emt 0:00:58]} 6. Bd2 {[%emt 0:00:09]} Be7 {[%emt 0:00:06]} 7. O-O {[%emt 0:00:14]} O-O {[%emt 0:00:07]} 8. Nc3 {[%emt 0:01:58]} Na6 {[%emt 0:00:13]} 9. Re1 {[%emt 0:17:31]} c5 {[%emt 0:25:28]} 10. e4 {[%emt 0:00:54]} cxd4 {[%emt 0:03:34]} 11. Nxd4 {[%emt 0:00:02]} Nc5 {[%emt 0:01:37]} 12. Qe2 {[%emt 0:05:01]} Qc8 {[%emt 0:07:57]} 13. b4 {[%emt 0:04:39]} Na6 {[%emt 0:00:43]} 14. a3 {[%emt 0:00:01]} d6 {[%emt 0:00:37]} 15. Rac1 {[%emt 0:02:28]} Nb8 {[%emt 0:00:31]} 16. f4 {[%emt 0:09:42]} Nbd7 {[%emt 0:03:38]} 17. e5 {[%emt 0:08:15]} dxe5 {[%emt 0:08:57]} 18. fxe5 {[%emt 0:00:04]} Ne8 {[%emt 0:00:08]} 19. Bxb7 {[%emt 0:05:19]} Qxb7 {[%emt 0:00:06]} 20. Qg2 {[%emt 0:00:09]} Qxg2+ {[%emt 0:01:12]} 21. Kxg2 {[%emt 0:00:00]} Nc7 {[%emt 0:03:51]} 22. Nc6 {[%emt 0:00:20]} Rfe8 {[%emt 0:00:06]} 23. Ne4 {[%emt 0:03:24]} Nb8 {[%emt 0:04:19]} 24. Nxe7+ {[%emt 0:07:47]} Rxe7 {[%emt 0:00:18]} 25. b5 {[%emt 0:06:36]} Ne8 {[%emt 0:10:13]} 26. Bb4 {[%emt 0:09:08]} Rb7 {[%emt 0:01:28]} 27. a4 {[%emt 0:02:25]} Nd7 {[%emt 0:01:15]} 28. c5 {[%emt 0:00:05]} bxc5 {[%emt 0:05:25]} 29. Nxc5 {[%emt 0:00:02]} Nxc5 {[%emt 0:05:53]} 30. Bxc5 {[%emt 0:00:05]} Nc7 {[%emt 0:01:34]} 31. Bd6 {[%emt 0:00:01]} Nd5 {[%emt 0:00:13]} 32. Rc6 {[%emt 0:00:02]} h5 {[%emt 0:02:31]} 33. Rec1 {[%emt 0:01:03]} Kh7 {[%emt 0:00:39]} 34. Rc8 {[%emt 0:03:54]} Rxc8 {[%emt 0:00:07]} 35. Rxc8 {[%emt 0:00:02]} f6 {[%emt 0:03:39]} 36. Rb8 {[%emt 0:03:50]} Rd7 {[%emt 0:00:23]} 37. a5 {[%emt 0:01:54]} fxe5 {[%emt 0:00:06]} 38. Bxe5 {[%emt 0:05:29]} Ne3+ {[%emt 0:00:22]} 39. Kh3 {[%emt 0:03:23]} g5 {[%emt 0:07:32]} 40. b6 {[%emt 0:00:00]} axb6 {[%emt 0:00:00]} 41. axb6 {[%emt 0:08:24]} Kg6 {[%emt 0:11:37]} 42. g4 {[%emt 0:01:08]} hxg4+ {[%emt 0:01:34]} 43. Kg3 {[%emt 0:00:01]} Rd2 {[%emt 0:00:22]} 44. Rg8+ {[%emt 0:02:57]} Kf5 {[%emt 0:00:06]} 45. Rxg5+ {[%emt 0:00:03]} Kxg5 {[%emt 0:00:06]} 46. Bf4+ {[%emt 0:00:01]} Kf5 {[%emt 0:00:59]} 0-1

[Event "Summer Chess Classic-C 2019"]
[Site "Saint Louis"]
[Date "2019.06.25"]
[Round "7.1"]
[White "Moradiabadi, Elshan"]
[Black "Chirila, Ioan-Cristian"]
[Result "1/2-1/2"]
[ECO "B32"]
[WhiteElo "2548"]
[BlackElo "2561"]
[Annotator "RC"]
[PlyCount "69"]
[EventDate "2019.06.18"]
[EventType "tourn"]
[EventCountry "USA"]
[SourceTitle "playchess.com"]
[Source "ChessBase"]
[SourceQuality "1"]
[TimeControl "40/5400+30:1800+30"]

1. e4 {[%emt 0:00:00]} c5 {[%emt 0:02:27]} 2. Nf3 {[%emt 0:00:00]} Nc6 {[%emt 0:00:46]} 3. d4 {[%emt 0:00:00]} cxd4 {[%emt 0:00:13]} 4. Nxd4 {[%emt 0:00:00]} Qb6 {[%emt 0:00:15]} 5. Nb3 {[%emt 0:00:00]} Nf6 {[%emt 0:00:08]} 6. Nc3 {[%emt 0:00:00]} e6 {[%emt 0:00:05]} 7. g3 {[%emt 0:00:00]} a6 {[%emt 0:02:34]} 8. Bg2 d6 {[%emt 0:01:01]} 9. O-O {[%emt 0:01:39]} Be7 {[%emt 0:10:02]} 10. a4 {[%emt 0:09:27]} Qc7 {[%emt 0:01:03]} 11. a5 {[%emt 0:04:38]} Ne5 12. Kh1 Bd7 {[%emt 0:09:06]} 13. f4 {[%emt 0:07:24]} Nc4 {[%emt 0:00:25]} 14. Qe2 e5 15. fxe5 {[%emt 0:20:50]} Nxe5 {[%emt 0:20:23]} 16. Nd4 {[%emt 0:12:37]} Bc6 17. Bg5 h6 {[%emt 0:22:46]} 18. Bf4 {[%emt 0:01:10]} g6 19. Nd5 {[%emt 0:08:56]} Nxd5 {[%emt 0:05:04]} 20. exd5 {[%emt 0:01:19]} Bd7 {[%emt 0:00:07]} 21. Rae1 {[%emt 0:03:37]} Bf6 {[%emt 0:03:57]} 22. Qd2 {[%emt 0:00:54]} Bg7 {[%emt 0:01:46]} 23. Nf3 {[%emt 0:00:12]} O-O {[%emt 0:07:43]} 24. Nxe5 {[%emt 0:00:04]} dxe5 {[%emt 0:00:08]} 25. d6 Qc5 {[%emt 0:00:33]} 26. b4 {[%emt 0:04:14]} Qb5 27. Bxh6 {[%emt 0:09:51]} Bxh6 {[%emt 0:02:01]} 28. Qxh6 {[%emt 0:00:01]} Bc6 {[%emt 0:00:06]} 29. Qd2 {[%emt 0:02:38]} Rac8 {[%emt 0:02:55]} 30. Rd1 {[%emt 0:01:58]} Rfd8 {[%emt 0:01:33]} 31. Rfe1 {[%emt 0:02:38]} Bxg2+ {[%emt 0:00:49]} 32. Kxg2 {[%emt 0:00:42]} Rc4 {[%emt 0:00:40]} 33. c3 {[%emt 0:00:59]} Qc6+ {[%emt 0:00:25]} 34. Qd5 {[%emt 0:02:37]} Rxc3 {[%emt 0:02:13]} 35. Qxc6 {[%emt 0:00:47]} 1/2-1/2

[Event "Summer Chess Classic-C 2019"]
[Site "Saint Louis"]
[Date "2019.06.26"]
[Round "8.1"]
[White "Chirila, Ioan-Cristian"]
[Black "Gordievsky, Dmitry"]
[Result "1-0"]
[ECO "A05"]
[WhiteElo "2561"]
[BlackElo "2592"]
[Annotator "RC"]
[PlyCount "87"]
[EventDate "2019.06.18"]
[EventType "tourn"]
[EventCountry "USA"]
[SourceTitle "playchess.com"]
[Source "ChessBase"]
[SourceQuality "1"]
[TimeControl "40/5400+30:1800+30"]

1. Nf3 {[%emt 0:02:36]} Nf6 {[%emt 0:00:21]} 2. g3 {[%emt 0:00:13]} g6 {[%emt 0:00:34]} 3. Bg2 {[%emt 0:00:07]} Bg7 {[%emt 0:00:07]} 4. O-O {[%emt 0:00:09]} O-O {[%emt 0:00:28]} 5. d4 {[%emt 0:00:13]} d6 {[%emt 0:00:19]} 6. a4 {[%emt 0:00:11]} a5 {[%emt 0:00:36]} 7. Nc3 {[%emt 0:00:14]} Nc6 {[%emt 0:03:16]} 8. Nb5 {[%emt 0:00:05]} Bd7 {[%emt 0:09:36]} 9. Re1 {[%emt 0:08:34]} e5 {[%emt 0:09:58]} 10. dxe5 {[%emt 0:10:29]} dxe5 {[%emt 0:01:32]} 11. e4 {[%emt 0:03:19]} Qc8 {[%emt 0:00:29]} 12. Qe2 {[%emt 0:02:55]} Bg4 {[%emt 0:00:58]} 13. c3 {[%emt 0:18:42]} Rd8 {[%emt 0:00:00]} 14. Qc2 {[%emt 0:01:08]} Qd7 {[%emt 0:11:08]} 15. Be3 Qe7 16. h3 {[%emt 0:06:41]} Be6 {[%emt 0:01:01]} 17. b3 {[%emt 0:06:30]} Ne8 {[%emt 0:07:00]} 18. Bf1 {[%emt 0:14:29]} f6 {[%emt 0:02:20]} 19. Nd2 {[%emt 0:01:40]} Kh8 {[%emt 0:11:54]} 20. Nc4 {[%emt 0:03:03]} f5 {[%emt 0:08:54]} 21. Bg2 {[%emt 0:02:03]} f4 {[%emt 0:11:48]} 22. gxf4 {[%emt 0:01:03]} exf4 {[%emt 0:01:51]} 23. Bxf4 {[%emt 0:00:17]} Bxc4 {[%emt 0:00:14]} 24. bxc4 {[%emt 0:00:05]} Ne5 {[%emt 0:00:11]} 25. Bg3 {[%emt 0:00:58]} Nf6 {[%emt 0:05:44]} 26. f4 {[%emt 0:05:34]} Nh5 {[%emt 0:00:25]} 27. Bh2 {[%emt 0:00:04]} Bh6 {[%emt 0:04:24]} 28. Rf1 {[%emt 0:02:59]} Nxc4 {[%emt 0:01:07]} 29. Qe2 {[%emt 0:00:45]} Nd2 {[%emt 0:00:36]} 30. Rf2 {[%emt 0:01:59]} Qc5 {[%emt 0:01:51]} 31. Kh1 {[%emt 0:00:28]} Nb3 {[%emt 0:02:09]} 32. Raf1 {[%emt 0:00:45]} Rd2 {[%emt 0:00:18]} 33. Qf3 {[%emt 0:02:22]} c6 {[%emt 0:02:52]} 34. Nc7 {[%emt 0:01:34]} Rc8 {[%emt 0:00:48]} 35. Ne6 {[%emt 0:00:14]} Qe7 {[%emt 0:01:27]} 36. f5 {[%emt 0:00:37]} Qf6 {[%emt 0:01:10]} 37. Qg4 {[%emt 0:02:27]} Rxf2 {[%emt 0:00:31]} 38. Rxf2 {[%emt 0:00:01]} Rg8 {[%emt 0:00:29]} 39. e5 {[%emt 0:01:51]} Qf7 {[%emt 0:00:19]} 40. f6 {[%emt 0:00:00]} Re8 {[%emt 0:00:00]} 41. Nd8 {[%emt 0:19:40]} Qc7 {[%emt 0:21:41]} 42. e6 {[%emt 0:02:21]} Qxd8 {[%emt 0:00:06]} 43. Be5 {[%emt 0:00:23]} Bg7 {[%emt 0:08:59]} 44. e7 {[%emt 0:02:03]} 1-0

[Event "Summer Chess Classic-C 2019"]
[Site "Saint Louis"]
[Date "2019.06.26"]
[Round "8.2"]
[White "Jacobson, Brandon"]
[Black "Neiksans, Arturs"]
[Result "1/2-1/2"]
[ECO "B47"]
[WhiteElo "2486"]
[BlackElo "2566"]
[Annotator "RC"]
[PlyCount "93"]
[EventDate "2019.06.18"]
[EventType "tourn"]
[EventCountry "USA"]
[SourceTitle "playchess.com"]
[Source "ChessBase"]
[SourceQuality "1"]
[TimeControl "40/5400+30:1800+30"]

1. e4 {[%emt 0:04:39]} c5 {[%emt 0:00:00]} 2. Nf3 {[%emt 0:00:05]} e6 {[%emt 0:00:06]} 3. d4 {[%emt 0:00:05]} cxd4 {[%emt 0:00:05]} 4. Nxd4 {[%emt 0:00:04]} Nc6 {[%emt 0:00:47]} 5. Nc3 {[%emt 0:00:06]} Qc7 {[%emt 0:00:08]} 6. Be2 {[%emt 0:00:30]} a6 {[%emt 0:04:20]} 7. O-O {[%emt 0:00:17]} Nf6 {[%emt 0:00:03]} 8. Be3 {[%emt 0:00:05]} Bb4 {[%emt 0:01:50]} 9. Nxc6 {[%emt 0:00:07]} bxc6 {[%emt 0:00:04]} 10. f4 {[%emt 0:00:03]} O-O {[%emt 0:08:35]} 11. e5 {[%emt 0:00:22]} Nd5 {[%emt 0:00:18]} 12. Nxd5 {[%emt 0:00:06]} cxd5 {[%emt 0:00:21]} 13. c3 {[%emt 0:00:05]} Bc5 {[%emt 0:02:35]} 14. Bxc5 {[%emt 0:10:23]} Qxc5+ {[%emt 0:00:24]} 15. Qd4 {[%emt 0:00:04]} d6 {[%emt 0:02:54]} 16. exd6 {[%emt 0:07:13]} Qxd6 {[%emt 0:10:24]} 17. c4 {[%emt 0:00:41]} a5 {[%emt 0:00:04]} 18. cxd5 {[%emt 0:19:50]} Bb7 {[%emt 0:03:10]} 19. Bf3 {[%emt 0:00:06]} Bxd5 {[%emt 0:03:28]} 20. Bxd5 {[%emt 0:04:27]} Qxd5 {[%emt 0:03:06]} 21. Qxd5 {[%emt 0:00:07]} exd5 {[%emt 0:00:04]} 22. Rad1 {[%emt 0:02:44]} Rfb8 {[%emt 0:02:04]} 23. Rf2 {[%emt 0:10:36]} Rb5 {[%emt 0:01:36]} 24. Rd4 {[%emt 0:00:04]} g6 {[%emt 0:07:22]} 25. Rfd2 {[%emt 0:05:53]} Rd8 {[%emt 0:00:58]} 26. Kf2 {[%emt 0:06:53]} Rc5 {[%emt 0:07:23]} 27. Ke2 {[%emt 0:04:20]} Kf8 {[%emt 0:03:06]} 28. Kd3 {[%emt 0:03:39]} Ke7 {[%emt 0:01:14]} 29. Re2+ {[%emt 0:04:04]} Kf6 {[%emt 0:08:25]} 30. g4 {[%emt 0:02:57]} h6 {[%emt 0:02:22]} 31. h4 {[%emt 0:02:05]} Rc1 {[%emt 0:01:47]} 32. g5+ {[%emt 0:04:45]} Kg7 {[%emt 0:00:11]} 33. Ra4 {[%emt 0:03:17]} Rd1+ {[%emt 0:05:12]} 34. Rd2 {[%emt 0:02:14]} Rh1 {[%emt 0:06:11]} 35. gxh6+ {[%emt 0:00:46]} Kxh6 {[%emt 0:00:09]} 36. Rxa5 {[%emt 0:00:03]} Rxh4 {[%emt 0:00:24]} 37. Rf2 {[%emt 0:00:46]} d4 {[%emt 0:01:30]} 38. Kc4 {[%emt 0:03:53]} Rh1 {[%emt 0:09:54]} 39. Rd2 {[%emt 0:00:01]} Rc1+ {[%emt 0:00:09]} 40. Kd3 {[%emt 0:00:00]} Rf1 {[%emt 0:00:00]} 41. f5 {[%emt 0:05:52]} g5 {[%emt 0:13:30]} 42. Rh2+ {[%emt 0:09:30]} Kg7 {[%emt 0:04:47]} 43. Rg2 {[%emt 0:00:08]} f6 {[%emt 0:02:00]} 44. Ra7+ {[%emt 0:04:28]} Kg8 {[%emt 0:00:11]} 45. Rh2 {[%emt 0:00:04]} Rf3+ {[%emt 0:03:33]} 46. Kc4 {[%emt 0:01:49]} Rxf5 {[%emt 0:05:07]} 47. Rhh7 {[%emt 0:00:08]} 1/2-1/2

[Event "Summer Chess Classic-C 2019"]
[Site "Saint Louis"]
[Date "2019.06.28"]
[Round "10.1"]
[White "Chirila, Ioan-Cristian"]
[Black "Neiksans, Arturs"]
[Result "1/2-1/2"]
[ECO "A05"]
[WhiteElo "2561"]
[BlackElo "2566"]
[Annotator "ChessBase"]
[PlyCount "60"]
[EventDate "2019.06.18"]
[EventType "tourn"]
[EventCountry "USA"]
[SourceTitle "playchess.com"]
[Source "ChessBase"]
[SourceQuality "1"]
[TimeControl "40/5400+30:1800+30"]

1. Nf3 {[%emt 0:13:54]} Nf6 {[%emt 0:00:00]} 2. c4 {[%emt 0:00:03]} b6 {[%emt 0:03:21]} 3. g3 {[%emt 0:00:23]} Bb7 {[%emt 0:00:04]} 4. Bg2 {[%emt 0:00:18]} e6 {[%emt 0:00:26]} 5. O-O {[%emt 0:00:49]} Be7 {[%emt 0:00:05]} 6. Nc3 {[%emt 0:03:42]} O-O {[%emt 0:00:40]} 7. d4 {[%emt 0:00:36]} Ne4 {[%emt 0:00:36]} 8. Bd2 {[%emt 0:00:06]} Bf6 {[%emt 0:03:37]} 9. Ne5 {[%emt 0:05:21]} Nxc3 {[%emt 0:00:46]} 10. Bxc3 {[%emt 0:00:04]} Bxg2 {[%emt 0:00:07]} 11. Kxg2 {[%emt 0:00:04]} d5 {[%emt 0:05:10]} 12. Ng4 {[%emt 0:12:46]} Be7 13. cxd5 Qxd5+ {[%emt 0:15:34]} 14. Kg1 {[%emt 0:14:45]} Nd7 {[%emt 0:01:23]} 15. Qc2 Nf6 {[%emt 0:09:10]} 16. Nxf6+ {[%emt 0:07:38]} Bxf6 17. Rfd1 {[%emt 0:09:47]} Rfd8 {[%emt 0:02:40]} 18. Rd3 {[%emt 0:04:38]} h6 {[%emt 0:09:35]} 19. a4 {[%emt 0:00:34]} c5 {[%emt 0:02:50]} 20. dxc5 {[%emt 0:02:10]} Qxc5 {[%emt 0:00:13]} 21. Rad1 {[%emt 0:00:18]} Qc7 {[%emt 0:05:23]} 22. Rxd8+ {[%emt 0:01:14]} Rxd8 {[%emt 0:00:23]} 23. Rxd8+ {[%emt 0:00:08]} Qxd8 {[%emt 0:00:08]} 24. Bxf6 {[%emt 0:00:11]} Qxf6 {[%emt 0:00:57]} 25. b3 {[%emt 0:00:09]} Qd8 {[%emt 0:00:45]} 26. h4 {[%emt 0:00:30]} h5 {[%emt 0:00:23]} 27. e3 {[%emt 0:00:33]} a5 {[%emt 0:00:18]} 28. Qc4 {[%emt 0:00:17]} g6 {[%emt 0:00:12]} 29. Kh2 {[%emt 0:00:22]} Qd6 {[%emt 0:00:19]} 30. Kg1 {[%emt 0:00:12]} Qd1+ {[%emt 0:00:06]} 1/2-1/2